bitfinex/quotes_BTCUSD_20230115
["timestamp","ask_amount","ask_price","bid_price","bid_amount"]
[1673825729225,0.00449846,20862.0,20859.0,0.16290725]
[1673825729541,0.00449846,20862.0,20859.0,0.63431125]
[1673825729802,0.00449846,20862.0,20859.0,0.564014]
[1673825730067,0.00449846,20862.0,20859.0,0.557014]
[1673825730324,0.00449846,20862.0,20859.0,0.63452125]
[1673825730577,0.00449846,20862.0,20860.0,0.0778]
[1673825731050,0.19522441,20862.0,20859.0,0.07761]
[1673825731558,0.00449846,20862.0,20859.0,0.62125167]
[1673825731823,0.00449846,20862.0,20859.0,0.69075892]
[1673825732084,0.00449846,20862.0,20860.0,0.003]
[1673825732870,0.00449846,20862.0,20861.0,0.03785094]
[1673825734766,0.00449846,20862.0,20861.0,0.04485094]
[1673825735032,0.00449846,20862.0,20861.0,0.6979154]
[1673825735294,0.00449846,20862.0,20861.0,1.09977115]
[1673825735801,0.00449846,20862.0,20861.0,1.09277115]
[1673825736295,0.00449846,20862.0,20861.0,1.17177115]
[1673825736547,0.00449846,20862.0,20861.0,1.18577115]
[1673825737558,0.00449846,20862.0,20861.0,1.09277115]
[1673825737810,0.00449846,20862.0,20861.0,1.17177115]
[1673825738339,0.00449846,20862.0,20861.0,1.47177115]
[1673825738606,0.00449846,20862.0,20861.0,1.54927115]
[1673825739607,0.00449846,20862.0,20861.0,1.76607115]
[1673825740386,0.00487444,20865.0,20862.0,0.1]
[1673825740638,0.00487444,20865.0,20864.0,0.4509]
[1673825740887,0.00487444,20865.0,20864.0,1.230594]
[1673825741662,0.00487444,20865.0,20864.0,1.08106842]
[1673825741918,0.00487444,20865.0,20864.0,1.17306842]
[1673825744208,0.00487444,20865.0,20864.0,1.16506842]
[1673825744459,0.00587444,20865.0,20864.0,1.16506842]
[1673825744723,0.00587444,20865.0,20864.0,1.46506842]
[1673825744983,0.00587444,20865.0,20864.0,1.54286842]
[1673825746010,0.00587444,20865.0,20864.0,1.83846842]
[1673825747789,0.00587444,20865.0,20864.0,1.84696842]
[1673825748297,0.00587444,20865.0,20864.0,1.3695344]
[1673825748552,0.00587444,20865.0,20864.0,1.85801621]
[1673825749058,0.00587444,20865.0,20864.0,1.25281621]
[1673825749059,0.19660039,20865.0,20864.0,1.25281621]
[1673825749296,0.00587444,20865.0,20864.0,1.25281621]
[1673825749794,0.00587444,20865.0,20864.0,1.20697581]
[1673825750043,0.00487444,20865.0,20864.0,1.12297581]
[1673825750562,0.00487444,20865.0,20864.0,1.51526581]
[1673825751810,0.00487444,20865.0,20864.0,1.81086581]
[1673825752072,0.00487444,20865.0,20864.0,1.86520621]
[1673825752818,0.00487444,20865.0,20864.0,1.77320621]
[1673825753342,0.00487444,20865.0,20864.0,1.46470621]
[1673825753592,0.00487444,20865.0,20864.0,1.18340621]
[1673825754099,0.00487444,20865.0,20864.0,1.28340621]
[1673825754618,0.00487444,20865.0,20864.0,1.58340621]
[1673825755380,0.00487444,20865.0,20864.0,1.59190621]
[1673825757138,0.00487444,20865.0,20864.0,1.66970621]
[1673825758419,0.00487444,20865.0,20864.0,1.66120621]
[1673825758689,0.00487444,20865.0,20864.0,1.48340621]
[1673825758939,0.00487444,20865.0,20864.0,1.39140621]
[1673825759195,0.00487444,20865.0,20864.0,1.48340621]
[1673825759457,0.00487444,20865.0,20864.0,1.39140621]
[1673825759721,0.00487444,20865.0,20864.0,1.48311621]
[1673825760254,0.00487444,20866.0,20865.0,0.16159078]
[1673825760498,0.00537302,20867.0,20866.0,0.16659025]
[1673825760754,0.00537302,20867.0,20866.0,1.10043825]
[1673825762297,0.00537302,20871.0,20867.0,0.00529698]
[1673825762551,0.00537302,20871.0,20870.0,0.1554]
[1673825762803,0.00537302,20871.0,20870.0,1.67037525]
[1673825763056,0.00537302,20871.0,20870.0,1.892868]
[1673825763817,0.00537302,20871.0,20870.0,1.984868]
[1673825764554,0.00537302,20871.0,20870.0,1.993368]
[1673825764809,0.00537302,20871.0,20870.0,2.39313263]
[1673825765064,0.00537302,20871.0,20870.0,2.22923263]
[1673825765328,0.00537302,20871.0,20870.0,2.13802262]
[1673825765587,0.00537302,20871.0,20870.0,2.23002262]
[1673825766090,0.00537302,20871.0,20870.0,2.21582262]
[1673825766348,0.00537302,20871.0,20870.0,3.26879129]
[1673825766603,0.00537302,20871.0,20870.0,3.31354455]
[1673825767385,0.00537302,20871.0,20870.0,2.919334]
[1673825767945,0.00537302,20871.0,20870.0,3.36700782]
[1673825768154,0.00537302,20871.0,20870.0,3.29017283]
[1673825768400,0.00537302,20871.0,20870.0,2.905134]
[1673825768657,0.00537302,20871.0,20870.0,3.04771414]
[1673825768908,0.00537302,20871.0,20870.0,3.31737437]
[1673825769160,0.00537302,20871.0,20870.0,3.40937437]
[1673825769429,0.00580184,20874.0,20870.0,3.75614294]
[1673825769678,0.00580184,20874.0,20873.0,0.1556]
[1673825769942,0.00580184,20874.0,20873.0,1.994148]
[1673825770203,0.00580184,20874.0,20873.0,2.24735564]
[1673825770464,0.00580184,20874.0,20873.0,2.302648]
[1673825770970,0.00580184,20874.0,20873.0,3.33833096]
[1673825771221,0.00580184,20874.0,20873.0,3.38309347]
[1673825771488,0.00591571,20876.0,20874.0,0.40137458]
[1673825771745,0.00591571,20876.0,20875.0,1.900923]
[1673825772004,0.00591571,20876.0,20875.0,1.814623]
[1673825772259,0.19664166,20876.0,20875.0,2.23718639]
[1673825772522,0.00591571,20876.0,20875.0,1.93718639]
[1673825772796,0.00591571,20876.0,20875.0,2.02918639]
[1673825773062,0.00091571,20876.0,20875.0,1.93718639]
[1673825773305,0.00091571,20876.0,20875.0,1.9379762]
[1673825774073,0.00091571,20876.0,20875.0,2.0299762]
[1673825774321,0.00091571,20876.0,20875.0,1.9379762]
[1673825774578,0.00091571,20876.0,20875.0,2.0169762]
[1673825774835,0.00091571,20876.0,20875.0,1.53714539]
[1673825775099,0.33096166,20876.0,20875.0,0.57906339]
[1673825775351,0.53933971,20876.0,20875.0,0.57906339]
[1673825775833,0.53933971,20876.0,20875.0,0.079]
[1673825776125,0.21803571,20876.0,20875.0,0.079]
[1673825776381,0.53933971,20876.0,20875.0,0.079]
[1673825776933,0.53933971,20876.0,20875.0,0.56624009]
[1673825776934,0.07871571,20876.0,20875.0,0.56624009]
[1673825777411,0.07871571,20876.0,20875.0,0.48724009]
[1673825777683,0.08371571,20876.0,20875.0,0.49424009]
[1673825777934,0.005,20876.0,20875.0,0.97328109]
[1673825778712,0.005,20876.0,20875.0,1.27328109]
[1673825778974,0.005,20876.0,20875.0,1.35068109]
[1673825779229,0.00603296,20877.0,20875.0,1.34368109]
[1673825779531,0.00603296,20877.0,20876.0,0.3773]
[1673825779738,0.00603296,20877.0,20876.0,1.335336]
[1673825780258,0.00603296,20877.0,20876.0,1.77655788]
[1673825780529,0.00603296,20877.0,20876.0,1.9518534]
[1673825781309,0.00603296,20877.0,20876.0,1.69925788]
[1673825781598,0.00603296,20877.0,20876.0,1.39925788]
[1673825782624,0.00603296,20877.0,20876.0,1.48725788]
[1673825783436,0.00603296,20877.0,20876.0,1.78725788]
[1673825783669,0.00603296,20877.0,20876.0,1.69925788]
[1673825784183,0.00603296,20877.0,20876.0,1.77705788]
[1673825784436,0.00603296,20877.0,20876.0,1.69925788]
[1673825784687,0.00603296,20877.0,20876.0,1.78725788]
[1673825785205,0.00603296,20877.0,20876.0,1.48725788]
[1673825788887,0.00603296,20877.0,20876.0,1.78725788]
[1673825789925,0.00622296,20877.0,20876.0,1.48725788]
[1673825791702,0.00622296,20877.0,20876.0,1.78725788]
[1673825797601,0.00622296,20877.0,20876.0,2.19045188]
[1673825798086,0.00622296,20877.0,20876.0,1.93022492]
[1673825798893,0.00622296,20877.0,20876.0,1.63022492]
[1673825799967,0.13021418,20879.0,20876.0,1.63022492]
[1673825800954,0.13021418,20879.0,20877.0,0.03100339]
[1673825801204,0.00191418,20879.0,20877.0,0.50998439]
[1673825803274,0.00191418,20879.0,20877.0,0.11300339]
[1673825804033,0.00191418,20879.0,20877.0,0.03100339]
[1673825804304,0.07991418,20879.0,20877.0,0.04100339]
[1673825804571,0.07991418,20879.0,20877.0,0.03100339]
[1673825804822,0.08007418,20879.0,20877.0,0.04100339]
[1673825805078,0.399104,20878.0,20877.0,0.04100339]
[1673825805331,0.5423358,20878.0,20877.0,0.04100339]
[1673825805584,0.399104,20878.0,20877.0,0.04100339]
[1673825805846,0.5423358,20878.0,20877.0,0.04100339]
[1673825806105,3.02166456,20878.0,20877.0,0.03400339]
[1673825806366,0.1,20877.0,20876.0,0.14296704]
[1673825806689,2.72419842,20877.0,20876.0,0.14296704]
[1673825806891,1.90934595,20877.0,20876.0,0.14296704]
[1673825807403,0.8725129,20877.0,20876.0,0.22047429]
[1673825807654,0.35884394,20877.0,20876.0,0.14296704]
[1673825807912,0.35884394,20877.0,20876.0,0.14996704]
[1673825807913,0.007,20877.0,20876.0,0.14996704]
[1673825808947,0.007,20877.0,20876.0,0.14296704]
[1673825809208,0.43774876,20879.0,20876.0,0.14296704]
[1673825809463,0.007,20877.0,20876.0,0.22447429]
[1673825809717,0.22278412,20879.0,20876.0,0.14296704]
[1673825810477,0.22278412,20879.0,20876.0,0.15096704]
[1673825811009,0.43774876,20879.0,20876.0,0.15096704]
[1673825811271,0.22278412,20879.0,20876.0,0.15096704]
[1673825812297,0.43774876,20879.0,20876.0,0.15096704]
[1673825812567,0.22278412,20879.0,20876.0,0.15096704]
[1673825814442,0.078,20878.0,20876.0,0.15096704]
[1673825814672,0.078,20878.0,20876.0,0.14296704]
[1673825814917,0.22130994,20878.0,20876.0,0.14296704]
[1673825815665,0.22830994,20878.0,20876.0,0.14696704]
[1673825816784,0.007,20878.0,20877.0,0.54126964]
[1673825817865,0.00207418,20879.0,20877.0,0.54126964]
[1673825818839,0.007,20878.0,20877.0,0.54126964]
[1673825819144,0.00207418,20879.0,20877.0,1.02026564]
[1673825819396,0.00207418,20879.0,20877.0,1.02826564]
[1673825819976,0.00191418,20879.0,20877.0,1.02826564]
[1673825820765,0.00226418,20879.0,20877.0,1.02826564]
[1673825821023,0.19299013,20879.0,20877.0,1.02826564]
[1673825821285,0.00226418,20879.0,20877.0,1.02826564]
[1673825821554,0.00226418,20879.0,20877.0,1.02026564]
[1673825822072,0.00226418,20879.0,20877.0,0.54926964]
[1673825822355,0.14557412,20879.0,20877.0,0.54126964]
[1673825822607,0.22297412,20879.0,20877.0,0.54926964]
[1673825822854,0.22297412,20879.0,20877.0,0.54126964]
[1673825823106,0.22297412,20879.0,20877.0,0.54926964]
[1673825823362,0.22297412,20879.0,20877.0,0.54126964]
[1673825823694,0.00226418,20879.0,20877.0,0.54126964]
[1673825824389,0.00926418,20879.0,20877.0,0.54526964]
[1673825824641,0.00226418,20879.0,20877.0,0.54126964]
[1673825824902,0.00226418,20879.0,20877.0,0.54926964]
[1673825825143,0.00226418,20879.0,20877.0,0.54126964]
[1673825825396,0.00226418,20879.0,20877.0,1.10025964]
[1673825825643,0.00226418,20879.0,20877.0,1.02025964]
[1673825825899,0.00226418,20879.0,20877.0,1.10025964]
[1673825826148,0.00226418,20879.0,20878.0,0.3773]
[1673825826404,0.00226418,20879.0,20878.0,1.50340201]
[1673825826659,0.00226418,20879.0,20878.0,1.40340201]
[1673825826907,0.19299013,20879.0,20877.0,1.24322813]
[1673825827167,0.27099013,20879.0,20877.0,0.76423813]
[1673825827438,0.08026418,20879.0,20877.0,0.62126964]
[1673825827666,0.08026418,20879.0,20877.0,0.54126964]
[1673825827917,0.08026418,20879.0,20878.0,0.008]
[1673825828172,0.08026418,20879.0,20877.0,0.54126964]
[1673825828427,0.08026418,20879.0,20877.0,0.62126964]
[1673825828676,0.08026418,20879.0,20877.0,0.54126964]
[1673825828924,0.08026418,20879.0,20878.0,0.008]
[1673825829165,0.08026418,20879.0,20877.0,0.54126964]
[1673825829425,0.08026418,20879.0,20877.0,0.54926964]
[1673825832219,0.00226418,20879.0,20877.0,0.54926964]
[1673825832475,0.00226418,20879.0,20877.0,1.02825764]
[1673825834565,0.00219105,20879.0,20877.0,1.02825764]
[1673825834816,0.00219105,20879.0,20878.0,0.3]
[1673825834817,0.00184105,20879.0,20878.0,0.3]
[1673825835103,0.00184105,20879.0,20878.0,0.92194149]
[1673825835591,0.00207105,20879.0,20878.0,0.92194149]
[1673825836359,0.00207105,20879.0,20878.0,1.97196204]
[1673825836614,0.00207105,20879.0,20878.0,2.92977017]
[1673825836876,0.00207105,20879.0,20878.0,2.93008616]
[1673825837131,0.00207105,20879.0,20878.0,3.07277255]
[1673825837389,0.00207105,20879.0,20878.0,3.21560286]
[1673825837707,0.00207105,20879.0,20878.0,2.85813927]
[1673825837975,0.00207105,20879.0,20878.0,2.95013927]
[1673825838235,0.00207105,20879.0,20878.0,3.39960286]
[1673825838506,0.00207105,20879.0,20878.0,2.85813927]
[1673825838764,0.00207105,20879.0,20878.0,3.16495975]
[1673825839243,0.00207105,20879.0,20878.0,2.87898888]
[1673825839253,0.00207105,20879.0,20878.0,3.02221588]
[1673825839495,0.00207105,20879.0,20878.0,1.41823461]
[1673825839754,0.00207105,20879.0,20878.0,1.0142]
[1673825841338,0.00207105,20879.0,20878.0,0.570973]
[1673825841894,0.00207105,20879.0,20878.0,0.870973]
[1673825842965,0.00207105,20879.0,20878.0,1.0142]
[1673825843519,0.00207105,20879.0,20878.0,0.9222]
[1673825843746,0.00307105,20879.0,20878.0,1.0072]
[1673825844559,0.00307105,20879.0,20878.0,1.41141217]
[1673825844808,0.00307105,20879.0,20878.0,1.62623265]
[1673825845084,0.00307105,20879.0,20878.0,1.22202048]
[1673825845361,0.00307105,20879.0,20878.0,1.0072]
[1673825846992,0.00307105,20879.0,20878.0,0.863973]
[1673825848057,0.00307105,20879.0,20878.0,0.563973]
[1673825848319,0.00307105,20879.0,20878.0,0.085]
[1673825849340,0.00307105,20879.0,20878.0,0.563973]
[1673825850138,0.00284105,20879.0,20878.0,0.563973]
[1673825850925,0.00284105,20879.0,20878.0,0.564103]
[1673825853477,0.00284105,20879.0,20878.0,0.864103]
[1673825853734,0.00284105,20879.0,20878.0,0.564103]
[1673825855801,0.00284105,20879.0,20878.0,0.70733]
[1673825856565,0.00284105,20879.0,20878.0,0.564103]
[1673825857089,0.00284105,20879.0,20878.0,0.70733]
[1673825857410,0.00284105,20879.0,20878.0,0.564103]
[1673825864858,0.08014105,20879.0,20878.0,0.563973]
[1673825866375,0.07914105,20879.0,20878.0,0.478973]
[1673825866630,0.07914105,20879.0,20878.0,0.490973]
[1673825870115,0.00184105,20879.0,20878.0,0.490973]
[1673825870885,0.00184105,20879.0,20878.0,0.491533]
[1673825875614,0.00184105,20879.0,20878.0,0.63476]
[1673825875853,0.06336105,20879.0,20878.0,0.491533]
[1673825876087,0.07984105,20879.0,20878.0,0.01256]
[1673825876328,0.75956349,20879.0,20878.0,0.01246859]
[1673825876833,0.61610969,20879.0,20878.0,0.01246859]
[1673825877089,0.90272395,20879.0,20878.0,0.01246859]
[1673825877875,0.90272395,20879.0,20878.0,0.00056]
[1673825878093,0.91672395,20879.0,20878.0,0.00656]
[1673825878332,0.77359691,20879.0,20878.0,0.00656]
[1673825878567,0.77359691,20879.0,20878.0,0.01356]
[1673825878568,0.10784105,20879.0,20878.0,0.01356]
[1673825878798,0.09384105,20879.0,20878.0,0.00756]
[1673825879037,0.10784105,20879.0,20878.0,0.01456]
[1673825879272,0.09384105,20879.0,20878.0,0.00056]
[1673825879525,0.10784105,20879.0,20878.0,0.00756]
[1673825879759,0.10784105,20879.0,20878.0,0.007]
[1673825880005,0.25132827,20879.0,20878.0,0.007]
[1673825880245,0.57263227,20879.0,20878.0,0.007]
[1673825880543,0.23732827,20879.0,20878.0,0.006]
[1673825881030,0.55863227,20879.0,20878.0,0.006]
[1673825881271,0.77359691,20879.0,20878.0,0.006]
[1673825881970,0.30880569,20879.0,20878.0,0.006]
[1673825882215,0.45226539,20879.0,20878.0,0.006]
[1673825882455,0.77356975,20879.0,20878.0,0.006]
[1673825882937,0.45226575,20879.0,20878.0,0.006]
[1673825883172,0.77356975,20879.0,20878.0,0.006]
[1673825883409,0.45226575,20879.0,20878.0,0.006]
[1673825883887,0.30880569,20879.0,20878.0,0.006]
[1673825884142,0.63010969,20879.0,20878.0,0.006]
[1673825884873,0.77355186,20879.0,20878.0,0.006]
[1673825885332,1.68093872,20879.0,20878.0,0.006]
[1673825885620,2.6e-06,20877.0,20871.0,0.143227]
[1673825885865,0.1558,20872.0,20869.0,1.04366551]
[1673825886111,0.19072595,20871.0,20869.0,0.77932399]
[1673825886622,0.19072595,20871.0,20869.0,0.56450351]
[1673825886850,0.0774,20870.0,20869.0,0.15514901]
[1673825887332,0.0774,20870.0,20869.0,1.67670076]
[1673825887799,0.0874,20870.0,20869.0,1.67170076]
[1673825888079,0.0874,20870.0,20869.0,0.00192201]
[1673825888328,0.01,20870.0,20869.0,0.14514901]
[1673825888570,0.01,20870.0,20869.0,0.62432801]
[1673825889316,0.01,20870.0,20869.0,0.48110101]
[1673825891231,0.01,20870.0,20869.0,0.00192201]
[1673825892186,0.078,20871.0,20869.0,0.00192201]
[1673825892427,0.022,20870.0,20869.0,0.00192201]
[1673825896121,1.07615769,20870.0,20869.0,0.00192201]
[1673825896376,1.39746169,20870.0,20869.0,0.00192201]
[1673825896608,1.37546169,20870.0,20869.0,0.00192201]
[1673825896868,1.39746169,20870.0,20869.0,0.00192201]
[1673825897114,1.37546169,20870.0,20869.0,0.00192201]
[1673825897360,1.46646169,20870.0,20869.0,0.00192201]
[1673825898096,0.412304,20870.0,20869.0,0.07942926]
[1673825898354,0.091,20870.0,20869.0,0.00192201]
[1673825899070,0.091,20870.0,20869.0,0.48110101]
[1673825899807,0.75896116,20874.0,20869.0,0.48110101]
[1673825900046,0.009,20870.0,20869.0,0.00992201]
[1673825900297,0.009,20870.0,20869.0,0.00192201]
[1673825900792,0.018,20870.0,20869.0,0.00992201]
[1673825901053,0.078,20872.0,20869.0,0.00192201]
[1673825901303,0.027,20870.0,20869.0,0.00292201]
[1673825902742,0.348304,20870.0,20869.0,0.00292201]
[1673825902975,0.426304,20870.0,20869.0,0.00292201]
[1673825904903,0.90350569,20870.0,20869.0,0.00292201]
[1673825905165,1.38266169,20870.0,20869.0,0.00292201]
[1673825905645,1.90601367,20870.0,20869.0,0.00292201]
[1673825905912,3.04224688,20870.0,20868.0,0.01235283]
[1673825906160,0.94843569,20869.0,20868.0,0.01235283]
[1673825906406,1.83335763,20869.0,20868.0,0.01235283]
[1673825907129,1.42761469,20869.0,20868.0,0.01235283]
[1673825907359,1.51861469,20869.0,20868.0,0.01235283]
[1673825909040,1.51861469,20869.0,20868.0,0.00735283]
[1673825909531,1.41861469,20869.0,20868.0,0.00735283]
[1673825909815,1.34061469,20869.0,20868.0,0.00735283]
[1673825913654,1.24961469,20869.0,20868.0,0.00735283]
[1673825914861,1.34061469,20869.0,20868.0,0.00735283]
[1673825916495,0.091,20869.0,20868.0,0.08486008]
[1673825916750,0.091,20869.0,20868.0,0.4808813]
[1673825917005,0.091,20869.0,20868.0,1.1154833]
[1673825917256,0.091,20869.0,20868.0,1.0380833]
[1673825917763,1.02620542,20874.0,20868.0,1.0380833]
[1673825918016,0.47720169,20873.0,20869.0,0.07750725]
[1673825918274,0.47720169,20873.0,20869.0,0.55668225]
[1673825919061,0.48620169,20873.0,20869.0,0.56468225]
[1673825919837,0.009,20873.0,20870.0,0.58685088]
[1673825920114,0.009,20873.0,20872.0,0.0774]
[1673825920393,0.009,20873.0,20872.0,0.48212756]
[1673825920922,2.6e-06,20877.0,20872.0,0.48198058]
[1673825921176,0.082,20873.0,20872.0,0.480095]
[1673825921466,0.082,20873.0,20872.0,0.558095]
[1673825921981,0.47720169,20876.0,20872.0,0.557095]
[1673825922249,0.47720169,20876.0,20873.0,0.078]
[1673825922514,0.47720169,20876.0,20873.0,0.557084]
[1673825923337,0.82788261,20876.0,20872.0,0.96579585]
[1673825923591,0.81135754,20876.0,20872.0,0.96579585]
[1673825923859,0.66792764,20876.0,20872.0,0.95779585]
[1673825924135,0.67692764,20876.0,20873.0,0.008]
[1673825924405,0.62063159,20876.0,20872.0,0.88779585]
[1673825924656,0.81935754,20876.0,20872.0,0.88779585]
[1673825924924,0.62863159,20876.0,20872.0,0.88779585]
[1673825925189,0.62863159,20876.0,20872.0,0.9653031]
[1673825925970,0.62863159,20876.0,20873.0,0.01802331]
[1673825926228,0.62863159,20876.0,20873.0,0.49711031]
[1673825926838,0.1434325,20877.0,20873.0,0.49711031]
[1673825927046,0.1434325,20877.0,20873.0,0.50511031]
[1673825927047,0.009,20876.0,20873.0,0.50511031]
[1673825930690,0.009,20876.0,20874.0,0.50369317]
[1673825931241,0.009,20876.0,20874.0,0.98269182]
[1673825932585,2.6e-06,20877.0,20874.0,0.98269182]
[1673825932872,0.006,20876.0,20874.0,0.99069182]
[1673825933393,2.6e-06,20877.0,20874.0,0.98269182]
[1673825933918,0.0060026,20877.0,20874.0,0.99069182]
[1673825934430,0.006,20876.0,20874.0,0.99069182]
[1673825934729,2.6e-06,20877.0,20874.0,0.98269182]
[1673825935445,0.0060026,20877.0,20874.0,0.99069182]
[1673825936322,0.0060026,20877.0,20874.0,0.008]
[1673825936323,0.078,20875.0,20874.0,0.008]
[1673825936591,0.87650569,20875.0,20874.0,0.008]
[1673825937101,0.87650569,20875.0,20873.0,0.01802331]
[1673825937417,0.47720169,20875.0,20873.0,0.01802331]
[1673825937694,0.48320169,20875.0,20874.0,0.007]
[1673825938483,0.47720169,20875.0,20873.0,0.01802331]
[1673825939041,0.083,20875.0,20874.0,0.47361983]
[1673825939293,2.6e-06,20877.0,20874.0,1.02967883]
[1673825939548,0.027,20875.0,20874.0,1.51209964]
[1673825939815,0.027,20875.0,20874.0,1.02967883]
[1673825940076,0.008,20875.0,20874.0,1.03667883]
[1673825940358,2.6e-06,20877.0,20874.0,1.02967883]
[1673825940610,2.6e-06,20877.0,20874.0,1.43434279]
[1673825940872,2.6e-06,20877.0,20874.0,1.02967883]
[1673825941440,0.008,20875.0,20874.0,1.03667883]
[1673825941742,2.6e-06,20877.0,20874.0,1.02967883]
[1673825942002,0.0080026,20877.0,20874.0,1.4413783]
[1673825943554,0.0080026,20877.0,20874.0,1.03667883]
[1673825943813,0.0080026,20877.0,20874.0,1.44144783]
[1673825944077,0.0080026,20877.0,20874.0,1.03667883]
[1673825944334,0.0080026,20877.0,20874.0,0.95867883]
[1673825944593,0.66792764,20876.0,20874.0,0.47961983]
[1673825944867,0.321304,20875.0,20874.0,0.47961983]
[1673825945678,0.321304,20875.0,20873.0,0.01802331]
[1673825945679,0.98923164,20875.0,20873.0,0.01802331]
[1673825945948,0.98923164,20875.0,20874.0,0.007]
[1673825945949,1.50031971,20875.0,20874.0,0.007]
[1673825946206,1.98897251,20875.0,20873.0,0.01101852]
[1673825946469,1.75066851,20875.0,20874.0,0.001]
[1673825946748,2.58408958,20875.0,20874.0,0.001]
[1673825947027,2.72751948,20875.0,20874.0,0.001]
[1673825947277,2.72751948,20875.0,20873.0,0.01101852]
[1673825947278,2.64451948,20875.0,20873.0,0.01101852]
[1673825947537,0.1,20873.0,20867.0,0.48848459]
[1673825947798,0.078,20871.0,20867.0,0.48848459]
[1673825948087,0.0778,20869.0,20867.0,0.48848459]
[1673825948340,0.321304,20868.0,20867.0,0.01198405]
[1673825948855,0.215534,20868.0,20867.0,0.01198405]
[1673825949129,0.0778,20869.0,20867.0,0.01198405]
[1673825949605,0.0778,20869.0,20867.0,0.01298405]
[1673825949606,0.027,20868.0,20867.0,0.01298405]
[1673825950127,0.0778,20869.0,20867.0,0.01198405]
[1673825950388,0.085,20869.0,20868.0,0.47769819]
[1673825951182,0.56661928,20872.0,20868.0,0.47769819]
[1673825951444,0.56661928,20872.0,20867.0,0.01698405]
[1673825951445,0.007,20869.0,20867.0,0.01698405]
[1673825951711,0.007,20869.0,20867.0,0.01198405]
[1673825951712,0.321304,20868.0,20867.0,0.01198405]
[1673825951980,0.034,20869.0,20868.0,0.001]
[1673825952250,0.1,20870.0,20867.0,0.01198405]
[1673825952506,1.13433969,20871.0,20867.0,0.01198405]
[1673825952762,1.13433969,20871.0,20867.0,0.0894913]
[1673825953028,0.321304,20870.0,20868.0,0.001]
[1673825953330,1.03433969,20871.0,20867.0,0.01198405]
[1673825953610,0.321304,20870.0,20867.0,0.01298405]
[1673825953877,0.321304,20869.0,20867.0,0.01198405]
[1673825954129,0.66220169,20870.0,20868.0,0.001]
[1673825954408,0.57720169,20870.0,20867.0,0.01198405]
[1673825954691,0.57720169,20870.0,20867.0,0.01298405]
[1673825954958,0.92476374,20870.0,20867.0,0.01198405]
[1673825955222,0.085,20869.0,20867.0,0.01298405]
[1673825955476,0.92476374,20870.0,20867.0,0.01298405]
[1673825955477,0.92476374,20870.0,20867.0,0.01198405]
[1673825956317,0.57720169,20870.0,20867.0,0.01198405]
[1673825956608,0.321304,20869.0,20867.0,0.01298405]
[1673825956873,0.215534,20868.0,20867.0,0.01298405]
[1673825957129,0.66220169,20870.0,20867.0,0.01298405]
[1673825957710,0.321304,20869.0,20867.0,0.01198405]
[1673825957969,0.085,20868.0,20867.0,0.01298405]
[1673825958231,0.47720169,20870.0,20867.0,0.01198405]
[1673825958992,0.56220169,20870.0,20867.0,0.01298405]
[1673825961363,0.321304,20869.0,20867.0,0.01298405]
[1673825961628,0.56220169,20870.0,20867.0,0.01298405]
[1673825965706,0.321304,20869.0,20867.0,0.01298405]
[1673825965963,0.215534,20868.0,20867.0,0.01298405]
[1673825966216,0.66220169,20870.0,20867.0,0.01298405]
[1673825966751,0.321304,20869.0,20867.0,0.01198405]
[1673825967028,0.085,20869.0,20867.0,0.01298405]
[1673825967287,0.47720169,20870.0,20867.0,0.01198405]
[1673825967545,0.56220169,20870.0,20867.0,0.01298405]
[1673825967797,0.321304,20869.0,20867.0,0.01198405]
[1673825968050,0.215534,20868.0,20867.0,0.01298405]
[1673825968326,0.215534,20868.0,20867.0,0.01198405]
[1673825968564,0.321304,20868.0,20867.0,0.01298405]
[1673825968828,1.58091699,20870.0,20867.0,0.01298405]
[1673825969411,0.421304,20869.0,20867.0,0.01198405]
[1673825969582,0.215534,20868.0,20867.0,0.01298405]
[1673825969826,0.1,20869.0,20867.0,0.01198405]
[1673825970083,1.48091699,20870.0,20867.0,0.01298405]
[1673825970599,0.085,20868.0,20867.0,0.01398405]
[1673825970866,1.39591699,20870.0,20867.0,0.01198405]
[1673825971930,0.085,20868.0,20867.0,0.01298405]
[1673825972706,0.62169556,20873.0,20867.0,0.56920905]
[1673825972976,0.085,20870.0,20868.0,0.07762498]
[1673825973298,0.085,20870.0,20868.0,0.00011773]
[1673825973768,0.57720169,20872.0,20868.0,0.00011773]
[1673825974029,0.57720169,20872.0,20868.0,0.07762498]
[1673825974590,0.62181263,20870.0,20868.0,0.00111773]
[1673825974813,1.46418469,20869.0,20868.0,0.00011773]
[1673825975068,1.46418469,20869.0,20868.0,0.00511773]
[1673825975584,2.01469788,20869.0,20868.0,0.00511773]
[1673825975893,1.60678325,20869.0,20868.0,0.00511773]
[1673825976128,1.60678325,20869.0,20868.0,0.00011773]
[1673825976373,1.69278325,20869.0,20868.0,0.00111773]
[1673825976627,1.60678325,20869.0,20868.0,0.00011773]
[1673825976889,1.69278325,20869.0,20868.0,0.00111773]
[1673825978159,1.59278325,20869.0,20868.0,0.00111773]
[1673825978413,1.45018469,20869.0,20868.0,0.00111773]
[1673825979465,1.59278325,20869.0,20868.0,0.00111773]
[1673825979788,1.45018469,20869.0,20868.0,0.00111773]
[1673825980284,1.59278325,20869.0,20868.0,0.00111773]
[1673825984355,1.73704449,20869.0,20868.0,0.00111773]
[1673825984632,0.76447157,20869.0,20868.0,0.14014498]
[1673825984935,0.086,20869.0,20868.0,0.00111773]
[1673825985146,0.22886443,20869.0,20868.0,0.00111773]
[1673825985640,0.35716757,20869.0,20868.0,0.00011773]
[1673825985895,0.22086443,20869.0,20868.0,0.00111773]
[1673825986149,0.14286443,20869.0,20868.0,0.00011773]
[1673825986422,0.43516757,20869.0,20868.0,0.00111773]
[1673825987474,0.22086443,20869.0,20868.0,0.00111773]
[1673825988003,0.22086443,20869.0,20868.0,1.01789408]
[1673825988004,0.07789765,20869.0,20868.0,1.01789408]
[1673825988266,0.07789765,20869.0,20868.0,3.62289384]
[1673825988520,0.07789765,20869.0,20868.0,3.54523668]
[1673825989354,0.14286443,20873.0,20868.0,1.72051788]
[1673825989612,0.007,20869.0,20868.0,1.25812108]
[1673825989873,0.35716757,20873.0,20868.0,1.31592108]
[1673825990123,0.007,20869.0,20868.0,1.51929193]
[1673825990414,0.007,20869.0,20868.0,1.19289408]
[1673825990664,0.35716757,20873.0,20868.0,1.17289408]
[1673825990919,0.35716757,20873.0,20870.0,0.078]
[1673825991946,0.14986443,20873.0,20870.0,0.557149]
[1673825992203,0.35716757,20874.0,20871.0,0.078]
[1673825992454,0.007,20873.0,20871.0,0.557127]
[1673825992980,0.007,20873.0,20872.0,0.45854128]
[1673825993248,0.14286443,20876.0,20872.0,1.01555128]
[1673825993496,0.14286443,20876.0,20873.0,0.078]